bitfinex/quotes_BTCUSD_20241202
["timestamp","ask_amount","ask_price","bid_price","bid_amount"]
[1733128655998,1.24021736,95261.0,95260.0,0.0008634]
[1733128656220,1.33352033,95261.0,95260.0,0.0008634]
[1733128656492,0.09436144,95254.0,95240.0,0.01]
[1733128656708,0.57872982,95254.0,95240.0,0.01]
[1733128656964,0.48218837,95254.0,95240.0,0.01]
[1733128657428,0.48218837,95254.0,95250.0,0.0009884]
[1733128657651,0.58218837,95254.0,95250.0,0.0009884]
[1733128657872,0.60963081,95254.0,95253.0,0.0090759]
[1733128658333,0.60963081,95254.0,95253.0,0.0120759]
[1733128659018,0.70863081,95254.0,95253.0,0.0090759]
[1733128659248,0.70963081,95254.0,95253.0,0.0130759]
[1733128660162,1.25813081,95254.0,95253.0,0.0130759]
[1733128660637,1.24757405,95254.0,95253.0,0.0130759]
[1733128660883,1.13228352,95254.0,95253.0,0.0130759]
[1733128661319,1.20928352,95254.0,95253.0,0.0130759]
[1733128661544,1.10928352,95254.0,95253.0,0.0130759]
[1733128661977,0.75643831,95254.0,95253.0,0.0130759]
[1733128662883,0.77943831,95254.0,95253.0,0.0139391]
[1733128663113,0.77843831,95254.0,95253.0,0.0099391]
[1733128663356,0.98511498,95254.0,95253.0,0.0139391]
[1733128663801,0.98411498,95254.0,95253.0,0.0069391]
[1733128664041,0.98511498,95254.0,95253.0,0.0109391]
[1733128664290,1.15042709,95254.0,95253.0,0.0139391]
[1733128664729,1.15042709,95254.0,95253.0,0.0109391]
[1733128665162,1.15042709,95254.0,95253.0,0.0139391]
[1733128665411,1.04759563,95254.0,95253.0,0.0139391]
[1733128665654,1.04759563,95254.0,95253.0,0.0109391]
[1733128665888,1.04659563,95254.0,95253.0,0.0069391]
[1733128666347,1.24659563,95254.0,95253.0,0.0099391]
[1733128666567,1.04659563,95254.0,95253.0,0.0099391]
[1733128666785,1.14659563,95254.0,95253.0,0.0099391]
[1733128667046,1.14659563,95254.0,95253.0,0.0129391]
[1733128667335,1.04659563,95254.0,95253.0,0.0099391]
[1733128667609,0.92075042,95254.0,95253.0,0.0099391]
[1733128667837,0.92075042,95254.0,95253.0,0.0129391]
[1733128668539,0.92075042,95254.0,95253.0,0.0099391]
[1733128668774,0.92075042,95254.0,95253.0,0.0129391]
[1733128669022,0.75543831,95254.0,95253.0,0.0129391]
[1733128669472,0.77079178,95254.0,95253.0,0.0099391]
[1733128669730,0.77079178,95254.0,95253.0,0.0139391]
[1733128669949,0.84787096,95254.0,95253.0,0.0069391]
[1733128670190,0.84787096,95254.0,95253.0,0.0099391]
[1733128670444,0.77179178,95254.0,95253.0,0.0149391]
[1733128670684,0.77079178,95254.0,95253.0,0.0099391]
[1733128670932,0.77079178,95254.0,95253.0,0.0069391]
[1733128671166,0.77079178,95254.0,95253.0,0.0099391]
[1733128671633,0.98075578,95254.0,95253.0,0.0069391]
[1733128671881,0.98075578,95254.0,95253.0,0.0099391]
[1733128672107,1.08358724,95254.0,95253.0,0.0149391]
[1733128672359,1.08358724,95254.0,95253.0,0.0099391]
[1733128672594,0.98075578,95254.0,95253.0,0.0139391]
[1733128672838,1.10660099,95254.0,95253.0,0.0139391]
[1733128676812,0.34436144,95251.0,95250.0,0.0009884]
[1733128677029,0.46256012,95251.0,95250.0,0.0009884]
[1733128677264,1.1522412,95251.0,95250.0,0.0009884]
[1733128677621,0.92356453,95251.0,95250.0,0.0009884]
[1733128678126,0.92356453,95251.0,95250.0,0.0049884]
[1733128678385,0.77356453,95251.0,95250.0,0.0049884]
[1733128678627,0.64136453,95251.0,95250.0,0.0049884]
[1733128678851,0.64236453,95251.0,95250.0,0.0109884]
[1733128679765,0.68003444,95250.0,95249.0,2.97672422]
[1733128680023,0.89823312,95250.0,95249.0,2.97672422]
[1733128680257,0.90438175,95250.0,95249.0,2.97672422]
[1733128680488,0.80438175,95250.0,95249.0,2.97672422]
[1733128680723,1.00721321,95250.0,95249.0,2.97672422]
[1733128680951,0.90438175,95250.0,95249.0,2.98072422]
[1733128681419,0.81846633,95250.0,95249.0,2.98072422]
[1733128681631,0.91846633,95250.0,95249.0,2.98072422]
[1733128681855,0.91946633,95250.0,95249.0,2.98272422]
[1733128682077,0.91946633,95250.0,95249.0,2.94988563]
[1733128682078,1.02229779,95250.0,95249.0,2.94988563]
[1733128682303,1.57079779,95250.0,95249.0,2.94988563]
[1733128682809,1.56979779,95250.0,95249.0,2.94388563]
[1733128683046,1.36696633,95250.0,95249.0,2.94488563]
[1733128683311,1.11696633,95250.0,95249.0,2.94488563]
[1733128683534,0.86542112,95250.0,95249.0,2.94488563]
[1733128683763,0.86542112,95250.0,95249.0,2.94388563]
[1733128684219,0.79405968,95250.0,95249.0,2.94488563]
[1733128684443,0.96825258,95250.0,95249.0,2.94488563]
[1733128684666,0.86542112,95250.0,95249.0,2.94488563]
[1733128684892,1.00006765,95250.0,95249.0,2.94488563]
[1733128685155,1.00006765,95250.0,95249.0,2.94388563]
[1733128685391,1.12591286,95250.0,95249.0,2.94488563]
[1733128685840,1.12591286,95250.0,95249.0,2.94474903]
[1733128686084,1.12591286,95250.0,95249.0,2.94674903]
[1733128686319,1.12591286,95250.0,95249.0,2.94574903]
[1733128686556,1.00006765,95250.0,95249.0,2.94474903]
[1733128686786,1.00006765,95250.0,95249.0,2.94574903]
[1733128686787,0.98598307,95250.0,95249.0,2.94574903]
[1733128687012,0.28748307,95250.0,95249.0,2.94674903]
[1733128687722,0.28748307,95250.0,95249.0,2.94574903]
[1733128687945,0.28748307,95250.0,95249.0,2.94774903]
[1733128688162,0.28748307,95250.0,95249.0,2.93774903]
[1733128688602,0.28748307,95250.0,95249.0,2.93674903]
[1733128688820,0.28748307,95250.0,95249.0,2.93974903]
[1733128689301,0.28748307,95250.0,95249.0,2.93474903]
[1733128689522,0.28848307,95250.0,95249.0,2.97217498]
[1733128689741,0.28748307,95250.0,95249.0,2.97017498]
[1733128689998,0.28748307,95250.0,95249.0,2.96717498]
[1733128690243,0.28748307,95250.0,95249.0,2.97017498]
[1733128690700,0.2971306,95250.0,95249.0,2.96717498]
[1733128691186,0.2981306,95250.0,95249.0,2.97317498]
[1733128691411,0.2981306,95250.0,95249.0,2.94074903]
[1733128691860,0.2971306,95250.0,95249.0,2.93774903]
[1733128692099,0.2981306,95250.0,95249.0,2.94074903]
[1733128692564,0.2971306,95250.0,95249.0,2.93774903]
[1733128692983,0.2971306,95250.0,95249.0,2.99511014]
[1733128692984,0.0871576,95250.0,95249.0,2.99511014]
[1733128693202,0.0871576,95250.0,95249.0,2.99811014]
[1733128693457,0.08328769,95250.0,95249.0,2.99811014]
[1733128693694,0.07136144,95250.0,95249.0,2.99511014]
[1733128693919,0.08100906,95250.0,95249.0,2.99911014]
[1733128694415,0.08100906,95250.0,95249.0,2.99511014]
[1733128694653,0.08333199,95250.0,95249.0,2.93974903]
[1733128694888,0.08333199,95250.0,95249.0,2.94274903]
[1733128695126,0.08333199,95250.0,95249.0,2.93974903]
[1733128695584,0.08433199,95250.0,95249.0,2.94274903]
[1733128695825,0.31423199,95250.0,95249.0,2.93974903]
[1733128696052,0.31190906,95250.0,95249.0,2.93674903]
[1733128696274,0.4469124,95250.0,95249.0,2.93674903]
[1733128696499,0.4469124,95250.0,95249.0,2.93774903]
[1733128696717,0.45400725,95250.0,95249.0,2.93774903]
[1733128696936,1.10533871,95250.0,95249.0,2.93474903]
[1733128697163,1.00250725,95250.0,95249.0,2.93474903]
[1733128697391,1.00250725,95250.0,95249.0,2.93404903]
[1733128697392,1.02550725,95250.0,95249.0,2.93404903]
[1733128697846,1.04266538,95250.0,95249.0,2.91140716]
[1733128698114,1.04366538,95250.0,95249.0,2.90940716]
[1733128698551,1.04666538,95250.0,95249.0,2.90940716]
[1733128698795,1.21733871,95250.0,95249.0,2.86741116]
[1733128699020,1.20190758,95250.0,95249.0,2.80441716]
[1733128699251,1.23105937,95250.0,95249.0,2.80441716]
[1733128699507,1.20090758,95250.0,95249.0,2.80441716]
[1733128699727,1.23405091,95250.0,95249.0,2.74142316]
[1733128699962,1.30190322,95250.0,95249.0,2.69942716]
[1733128700178,1.33305139,95250.0,95249.0,2.69942716]
[1733128700615,1.33405139,95250.0,95249.0,2.69942716]
[1733128700832,1.33105139,95250.0,95249.0,2.65743116]
[1733128701046,1.30190322,95250.0,95249.0,2.59443716]
[1733128701266,1.19907176,95250.0,95249.0,2.59443716]
[1733128701699,1.19907176,95250.0,95249.0,2.57343916]
[1733128702407,1.09807176,95250.0,95249.0,2.48944716]
[1733128702650,1.20107176,95250.0,95249.0,2.48944716]
[1733128703092,1.19807176,95250.0,95249.0,2.48944716]
[1733128703543,1.19907176,95250.0,95249.0,2.48944716]
[1733128703760,1.09907176,95250.0,95249.0,2.48944716]
[1733128703995,1.19907176,95250.0,95249.0,2.48944716]
[1733128706474,1.19807176,95250.0,95249.0,2.48944716]
[1733128706915,1.20207176,95250.0,95249.0,2.48944716]
[1733128707152,1.30490322,95250.0,95249.0,2.48944716]
[1733128707366,1.30090322,95250.0,95249.0,2.48944716]
[1733128707816,1.29790322,95250.0,95249.0,2.48944716]
[1733128708036,1.31332104,95250.0,95249.0,2.48944716]
[1733128708241,1.32232104,95250.0,95249.0,2.42645316]
[1733128708505,1.32232104,95250.0,95249.0,2.40545516]
[1733128708726,1.32632104,95250.0,95249.0,2.36345916]
[1733128708955,1.31732104,95250.0,95249.0,2.27946716]
[1733128709208,1.32132104,95250.0,95249.0,2.27946716]
[1733128709466,1.32432104,95250.0,95249.0,2.27946716]
[1733128709693,1.32432104,95250.0,95249.0,1.69550547]
[1733128709694,1.36442104,95250.0,95249.0,1.69550547]
[1733128709944,1.36442104,95250.0,95249.0,1.61151347]
[1733128710406,1.3935423,95250.0,95249.0,1.60831347]
[1733128710670,1.36142104,95250.0,95249.0,1.43074686]
[1733128710892,1.40253499,95250.0,95249.0,1.34675486]
[1733128711124,1.40253499,95250.0,95249.0,1.34437234]
[1733128711125,1.39353499,95250.0,95249.0,1.34437234]
[1733128711384,1.39353499,95250.0,95249.0,1.27656508]
[1733128711604,1.40253499,95250.0,95249.0,0.55912614]
[1733128711850,1.39753499,95250.0,95249.0,0.41581614]
[1733128712111,1.39753499,95250.0,95240.0,0.01]
[1733128712112,0.67698018,95242.0,95240.0,0.01]
[1733128712356,1.09328663,95242.0,95241.0,0.19761963]
[1733128712574,1.14946149,95242.0,95241.0,0.19761963]
[1733128712805,1.14946149,95242.0,95241.0,0.09261963]
[1733128713030,1.16486777,95242.0,95241.0,0.09261963]
[1733128713255,1.16786777,95242.0,95241.0,0.09261963]
[1733128713732,0.27136144,95241.0,95240.0,6.3e-07]
[1733128713973,0.66544439,95241.0,95240.0,6.3e-07]
[1733128714441,0.67271925,95241.0,95240.0,6.3e-07]
[1733128714689,0.56988779,95241.0,95240.0,6.3e-07]
[1733128715144,0.57288779,95241.0,95240.0,6.3e-07]
[1733128715386,0.58088779,95241.0,95240.0,6.3e-07]
[1733128715623,0.59518283,95241.0,95240.0,6.3e-07]
[1733128715847,0.59218283,95241.0,95240.0,6.3e-07]
[1733128716103,0.69801429,95241.0,95240.0,6.3e-07]
[1733128716567,0.27136144,95237.0,95236.0,3.7e-07]
[1733128716797,0.55338022,95237.0,95236.0,3.7e-07]
[1733128717017,0.56432217,95237.0,95236.0,3.7e-07]
[1733128717261,0.59016946,95237.0,95236.0,3.7e-07]
[1733128717480,0.7857972,95237.0,95236.0,3.7e-07]
[1733128717707,0.44436144,95235.0,95234.0,7e-08]
[1733128717951,0.54720665,95235.0,95234.0,7e-08]
[1733128718191,0.84999818,95234.0,95233.0,0.11697707]
[1733128718415,0.95284339,95234.0,95233.0,0.11697707]
[1733128718687,1.03509841,95234.0,95233.0,0.11697707]
[1733128719812,1.04604024,95234.0,95233.0,0.11697707]
[1733128720518,1.05104024,95234.0,95233.0,0.11697707]
[1733128720739,1.07688753,95234.0,95233.0,0.11697707]
[1733128721473,1.07888753,95234.0,95233.0,0.11697707]
[1733128721692,1.07388753,95234.0,95233.0,0.11697707]
[1733128722134,0.94804024,95234.0,95233.0,0.11147707]
[1733128722392,1.05704024,95234.0,95233.0,0.11147707]
[1733128722628,1.05704024,95234.0,95230.0,0.98366162]
[1733128722629,0.44436144,95231.0,95230.0,0.98366162]
[1733128722864,0.54720665,95231.0,95230.0,0.98366162]
[1733128723116,0.55336005,95231.0,95230.0,0.98366162]
[1733128723364,0.45336005,95231.0,95230.0,0.98366162]
[1733128723597,0.55336005,95231.0,95230.0,0.98366162]
[1733128723815,0.74898779,95231.0,95230.0,0.98366162]
[1733128724260,0.7628656,95231.0,95230.0,0.98366162]
[1733128724508,0.7688656,95231.0,95230.0,0.98366162]
[1733128724735,0.7628656,95231.0,95230.0,0.98366162]
[1733128725253,0.7708656,95231.0,95230.0,0.98366162]
[1733128725481,0.7628656,95231.0,95230.0,0.98366162]
[1733128725735,0.7658656,95231.0,95230.0,0.98366162]
[1733128725958,0.7628656,95231.0,95230.0,0.96265962]
[1733128726210,0.7628656,95231.0,95230.0,0.94165762]
[1733128726466,0.7658656,95231.0,95230.0,0.38810295]
[1733128726688,0.83125526,95231.0,95230.0,0.26179784]
[1733128726934,0.70977577,95231.0,95230.0,0.07744613]
[1733128727189,0.82520534,95231.0,95230.0,0.07744613]
[1733128727429,0.44436144,95225.0,95224.0,0.08181839]
[1733128727660,0.57927413,95225.0,95224.0,0.01880339]
[1733128727891,0.45444244,95201.0,95200.0,0.66840465]
[1733128728118,0.55728765,95201.0,95200.0,0.644748]
[1733128728344,0.56272387,95201.0,95200.0,0.644748]
[1733128728564,0.66272387,95201.0,95200.0,0.644748]
[1733128728840,0.54031829,95201.0,95200.0,0.644748]
[1733128729295,0.46895685,95201.0,95200.0,0.639748]
[1733128729546,0.54031829,95201.0,95200.0,0.639748]
[1733128730005,0.54231829,95201.0,95200.0,0.639748]
[1733128730234,0.56531829,95201.0,95200.0,0.639748]
[1733128730680,0.57131829,95201.0,95200.0,0.639748]
[1733128731131,0.58557164,95201.0,95200.0,0.639748]
[1733128731606,0.58357164,95201.0,95200.0,0.639748]
[1733128731818,0.57757164,95201.0,95200.0,0.6406115]
[1733128732034,0.43057164,95201.0,95200.0,0.7720115]
[1733128732256,0.41631829,95201.0,95200.0,0.73915901]
[1733128732472,0.41331829,95201.0,95200.0,0.73915901]
[1733128732949,0.42331829,95201.0,95200.0,0.73915901]
[1733128733426,0.57331829,95201.0,95200.0,0.73915901]
[1733128734330,0.56531829,95201.0,95200.0,0.73915901]
[1733128734551,0.46847308,95201.0,95200.0,0.73915901]
[1733128735221,0.46647308,95201.0,95200.0,0.73915901]
[1733128735434,0.46047308,95201.0,95200.0,0.73915901]
[1733128735673,0.46247308,95201.0,95200.0,0.74015901]
[1733128736164,0.56531829,95201.0,95200.0,0.74015901]
[1733128738556,0.56531829,95201.0,95200.0,0.73915901]
[1733128739113,0.56331829,95201.0,95200.0,0.73915901]
[1733128739310,0.56631829,95201.0,95200.0,0.73915901]
[1733128739511,0.56831829,95201.0,95200.0,0.69316411]
[1733128740559,0.56831829,95201.0,95200.0,0.7636179]
[1733128740560,0.08039208,95201.0,95200.0,0.7636179]
[1733128740759,0.08039208,95201.0,95200.0,0.69316411]
[1733128740913,0.07595586,95201.0,95200.0,0.69316411]
[1733128741145,0.07295586,95201.0,95200.0,0.69316411]
[1733128741369,0.09401794,95201.0,95200.0,0.69316411]
[1733128741567,0.09786433,95201.0,95200.0,0.69316411]
[1733128741780,0.08180225,95201.0,95200.0,0.69316411]
[1733128741999,0.03212191,95203.0,95200.0,0.68846411]
[1733128742195,0.210047,95217.0,95200.0,0.68846411]
[1733128742196,0.01605983,95209.0,95200.0,0.56235853]
[1733128742402,0.01605983,95209.0,95201.0,0.1267]
[1733128742629,0.01605983,95209.0,95200.0,0.58363884]
[1733128742630,0.01605983,95209.0,95203.0,0.1267]
[1733128742849,0.210068,95207.0,95204.0,0.0813]
[1733128743062,0.00232401,95206.0,95204.0,0.0813]
[1733128743287,0.21239701,95205.0,95204.0,0.0613]
[1733128743497,0.21239701,95205.0,95204.0,0.08051835]
[1733128743707,0.00232401,95205.0,95204.0,0.0613]
[1733128744116,0.01605983,95209.0,95204.0,0.0613]
[1733128744117,0.00232409,95208.0,95204.0,0.0613]
[1733128744356,0.01605983,95209.0,95203.0,0.0454]
[1733128744567,0.00232401,95208.0,95203.0,0.0454]
[1733128744790,0.420138,95207.0,95203.0,0.0484]
[1733128745027,0.001,95205.0,95204.0,0.003]
[1733128745260,0.210075,95204.0,95203.0,0.0454]
[1733128745504,0.21239914,95204.0,95203.0,0.0454]
[1733128745730,0.21239914,95204.0,95203.0,0.0494]
[1733128746001,0.23539914,95204.0,95203.0,0.0454]
[1733128746240,0.33592021,95204.0,95203.0,0.0454]
[1733128746480,0.210079,95202.0,95200.0,0.56235853]
[1733128746699,0.00232415,95201.0,95200.0,0.56235853]
[1733128746917,0.00232415,95201.0,95200.0,0.69305853]
[1733128747136,0.01605983,95209.0,95201.0,0.0828]
[1733128747390,0.00232404,95208.0,95202.0,0.06930585]
[1733128747631,0.0091245,95208.0,95203.0,0.0828]
[1733128747839,0.0091245,95208.0,95203.0,0.0868]
[1733128748077,0.0091245,95208.0,95203.0,0.0848]
[1733128748290,0.0091245,95208.0,95203.0,0.0828]
[1733128748505,0.023,95207.0,95203.0,0.0828]
[1733128748718,0.023,95207.0,95204.0,0.1308]
[1733128748957,0.023,95215.0,95204.0,0.048]
[1733128749183,0.023,95213.0,95205.0,0.0758]
[1733128749433,0.023,95211.0,95205.0,0.0758]
[1733128749647,0.023,95209.0,95205.0,0.0758]
[1733128749880,0.023,95207.0,95205.0,0.0758]
[1733128751024,0.02532399,95214.0,95205.0,0.0758]
[1733128751273,0.023,95210.0,95205.0,0.0758]
[1733128751495,0.210059,95211.0,95205.0,0.0788]
[1733128751496,0.023,95206.0,95205.0,0.0788]
[1733128751729,0.023,95208.0,95205.0,0.0788]
[1733128751935,0.02979837,95206.0,95205.0,0.0788]
[1733128752173,0.02532401,95206.0,95205.0,0.0788]
[1733128752387,0.13497179,95206.0,95205.0,0.0778]
[1733128752872,0.13497179,95206.0,95205.0,0.0758]
[1733128753130,0.13497179,95206.0,95205.0,0.0788]
[1733128753843,0.13497179,95206.0,95205.0,0.0808]
[1733128754051,0.02980257,95206.0,95205.0,0.0788]
[1733128754526,0.02980257,95206.0,95205.0,0.1321]
[1733128754762,0.023,95206.0,95205.0,0.1321]
[1733128755007,0.23539404,95206.0,95205.0,0.1321]
[1733128755249,0.03158764,95206.0,95205.0,0.1321]
[1733128755455,0.03391172,95206.0,95205.0,0.1321]
[1733128755729,0.03391172,95206.0,95205.0,0.0828]
[1733128755938,0.13675693,95206.0,95205.0,0.0828]
[1733128756960,0.13675693,95206.0,95205.0,0.0798]
[1733128757195,0.03491177,95206.0,95205.0,0.0798]
[1733128757432,0.03391177,95206.0,95205.0,0.0758]
[1733128757899,0.03391177,95206.0,95205.0,0.0788]
[1733128758361,0.03180766,95206.0,95205.0,0.0778]
[1733128758572,0.03180766,95206.0,95205.0,0.0788]
[1733128759552,0.13465287,95206.0,95205.0,0.0828]
[1733128759762,0.420146,95205.0,95200.0,0.55935853]
[1733128759974,0.210077,95203.0,95200.0,0.55935853]
[1733128760186,0.210081,95201.0,95200.0,0.55935853]
[1733128760434,0.23540522,95201.0,95200.0,0.55935853]
[1733128760642,0.23993724,95201.0,95200.0,0.55935853]
[1733128761105,0.34278245,95201.0,95200.0,0.56035853]
[1733128761552,0.34278245,95201.0,95200.0,0.55935853]
[1733128761837,0.34278245,95201.0,95200.0,0.56135853]
[1733128762051,0.34278245,95201.0,95200.0,0.55935853]
[1733128762524,0.49278245,95201.0,95200.0,0.56135853]
[1733128762944,0.49278245,95201.0,95200.0,0.55935853]
[1733128763421,0.49278245,95201.0,95200.0,0.56035853]
[1733128764505,0.49578245,95201.0,95200.0,0.55935853]
[1733128765239,0.50966164,95201.0,95200.0,0.55935853]
[1733128765446,0.50666164,95201.0,95200.0,0.55935853]
[1733128765660,0.50866164,95201.0,95200.0,0.55915853]
[1733128765876,0.50866164,95201.0,95200.0,0.56015853]
[1733128766298,0.50866164,95201.0,95200.0,0.55915853]
[1733128766962,0.60666164,95201.0,95200.0,0.55915853]
[1733128767444,0.61066164,95201.0,95200.0,0.55915853]
[1733128767697,0.63978049,95201.0,95200.0,0.55915853]
[1733128767928,0.64378049,95201.0,95200.0,0.55915853]
[1733128768108,0.61066164,95201.0,95200.0,0.55915853]
[1733128768621,0.2116858,95257.0,95250.0,0.58052402]
[1733128768835,0.2116858,95257.0,95250.0,0.34265102]
[1733128768836,0.51284521,95251.0,95250.0,0.34265102]
[1733128769064,0.51284521,95251.0,95250.0,0.30979539]
[1733128769065,0.5449618,95251.0,95250.0,0.30979539]
[1733128769277,0.57661255,95251.0,95250.0,0.30979539]
[1733128769507,0.57661255,95251.0,95250.0,0.22877431]
[1733128769849,0.57661255,95251.0,95250.0,0.16578331]
[1733128769959,0.57661255,95251.0,95250.0,0.0259684]
[1733128770665,0.360081,95201.0,95200.0,0.55956411]
[1733128770878,0.46292621,95201.0,95200.0,0.55915853]
[1733128771120,0.46292621,95201.0,95200.0,0.51714253]
[1733128771121,0.49502899,95201.0,95200.0,0.51714253]
[1733128771356,0.46292621,95201.0,95200.0,0.45411853]
[1733128771572,0.50611289,95201.0,95200.0,0.45411853]
[1733128771821,0.49501951,95201.0,95200.0,0.45411853]
[1733128772035,0.49501951,95201.0,95200.0,0.45511853]
[1733128772036,0.48979477,95201.0,95200.0,0.45511853]
[1733128772293,0.48379477,95201.0,95200.0,0.45411853]
[1733128772504,0.49342051,95201.0,95200.0,0.45411853]
[1733128772764,0.512431,95201.0,95200.0,0.45411853]
[1733128773025,1.060931,95201.0,95200.0,0.45411853]
[1733128773473,1.083931,95201.0,95200.0,0.45411853]
[1733128773706,1.092931,95201.0,95200.0,0.45511853]
[1733128773933,1.078931,95201.0,95200.0,0.45411853]
[1733128774178,0.519431,95201.0,95200.0,0.45511853]
[1733128774630,0.515431,95201.0,95200.0,0.45511853]
[1733128775121,0.510431,95201.0,95200.0,0.45411853]
[1733128775352,0.539431,95201.0,95200.0,0.45511853]
[1733128775823,0.542431,95201.0,95200.0,0.45511853]
[1733128776292,0.52727738,95201.0,95200.0,0.45511853]
[1733128776757,1.07577738,95201.0,95200.0,0.45511853]
[1733128776983,1.09117279,95201.0,95200.0,0.45511853]
[1733128777209,1.06677738,95201.0,95200.0,0.45411853]
[1733128777438,1.06677738,95201.0,95200.0,0.45511853]
[1733128777439,1.07277738,95201.0,95200.0,0.45511853]
[1733128777669,1.07277738,95201.0,95200.0,0.45411853]
[1733128777911,1.07577738,95201.0,95200.0,0.43311053]
[1733128778135,1.08477738,95201.0,95200.0,0.43311053]
[1733128778350,1.06377738,95201.0,95200.0,0.39109453]
[1733128778569,1.05815164,95201.0,95200.0,0.34907853]
[1733128778830,1.07677113,95201.0,95200.0,0.24403853]
[1733128779062,1.07527455,95201.0,95200.0,0.24403853]
[1733128779301,1.11305469,95201.0,95200.0,0.24403853]
[1733128779554,1.11333123,95201.0,95200.0,0.24403853]
[1733128780246,1.12233123,95201.0,95200.0,0.1239418]
[1733128780466,1.12233123,95201.0,95200.0,0.1029318]
[1733128783029,0.50730826,95193.0,95192.0,0.05687942]
[1733128783541,0.51630826,95193.0,95192.0,0.05687942]
[1733128783777,0.50730826,95193.0,95192.0,0.05687942]
[1733128784021,0.49930826,95193.0,95192.0,0.05687942]
[1733128784257,0.66014556,95193.0,95192.0,0.05687942]
[1733128784476,0.67614556,95193.0,95192.0,0.05149592]
[1733128785462,0.65314556,95193.0,95192.0,0.05149592]
[1733128786396,0.65314556,95193.0,95192.0,0.04320274]
[1733128786650,0.64842866,95193.0,95192.0,7.4e-07]
[1733128786892,0.64842866,95193.0,95188.0,0.00028724]
[1733128786893,0.15,95190.0,95188.0,0.00028724]
[1733128787140,0.360101,95192.0,95184.0,0.2]
[1733128787141,0.15,95187.0,95184.0,0.1811354]
[1733128787369,0.62159136,95185.0,95184.0,0.09403453]
[1733128787583,0.62159136,95185.0,95125.0,0.003716]
[1733128787584,0.72888015,95177.0,95176.0,0.18587061]
[1733128787801,0.83172536,95177.0,95176.0,0.16874003]
[1733128788053,0.83172536,95177.0,95176.0,0.12062841]
[1733128788275,0.86373001,95177.0,95176.0,0.07326774]
[1733128788495,0.83829936,95177.0,95176.0,0.07326774]
[1733128788705,0.83829936,95177.0,95176.0,0.037963]
[1733128788706,0.46955321,95177.0,95176.0,0.037963]
[1733128789273,0.47855321,95177.0,95176.0,0.037963]
[1733128789486,0.47855321,95177.0,95176.0,0.160163]
[1733128789487,0.13225618,95177.0,95176.0,0.160163]
[1733128789920,0.13458118,95177.0,95176.0,0.160163]
[1733128790348,0.13858118,95177.0,95176.0,0.1146259]
[1733128790547,0.13858118,95177.0,95176.0,0.1616259]
[1733128790820,0.017899,95177.0,95176.0,0.2616259]
[1733128791057,0.008899,95177.0,95176.0,0.2616259]
[1733128791299,0.018899,95177.0,95176.0,0.2616259]
[1733128791532,0.27204078,95177.0,95176.0,0.2616259]
[1733128791742,0.25314178,95177.0,95176.0,0.2616259]
[1733128791949,0.26071405,95177.0,95176.0,0.2616259]
[1733128792168,0.26071405,95177.0,95176.0,0.1616259]
[1733128792379,0.27510604,95177.0,95176.0,0.1616259]
[1733128793514,0.27510604,95177.0,95176.0,0.10625137]
[1733128793735,0.27610604,95177.0,95176.0,0.02425137]
[1733128793985,0.28280711,95177.0,95176.0,0.02425137]
[1733128794203,0.68159522,95177.0,95176.0,0.02425137]
[1733128794428,0.69121961,95177.0,95176.0,0.02425137]
[1733128794639,0.69712901,95177.0,95176.0,0.00614376]
[1733128794872,0.360152,95169.0,95168.0,0.19624984]
[1733128795084,0.46299721,95169.0,95168.0,0.19624984]
[1733128795297,0.53064788,95169.0,95168.0,0.19624984]
[1733128795971,0.53064788,95169.0,95168.0,0.18969856]
[1733128796192,0.53124241,95169.0,95168.0,0.18969856]
[1733128796872,0.54726032,95169.0,95168.0,0.17988454]
[1733128797328,0.54526032,95169.0,95168.0,0.17988454]
[1733128797548,0.55126032,95169.0,95168.0,0.17988454]
[1733128798006,0.54526032,95169.0,95168.0,0.17988454]
[1733128798198,0.55426032,95169.0,95168.0,0.17988454]
[1733128798451,0.54826032,95169.0,95168.0,0.17988454]
[1733128798954,0.58227218,95169.0,95168.0,0.17988454]
[1733128799179,0.57327218,95169.0,95168.0,0.17988454]
[1733128799395,0.60335852,95169.0,95168.0,0.17988454]
[1733128799616,0.58035852,95169.0,95168.0,0.17988454]
[1733128800040,0.55967351,95169.0,95168.0,0.17988454]
[1733128800285,0.55667351,95169.0,95168.0,0.17988454]
[1733128800495,0.55678225,95169.0,95168.0,0.17988454]
[1733128800727,0.54778225,95169.0,95168.0,0.17988454]
[1733128800975,0.54278225,95169.0,95168.0,0.17988454]
[1733128801190,0.55178225,95169.0,95168.0,0.17988454]
[1733128801426,0.53039036,95169.0,95168.0,0.17988454]
[1733128801642,0.54578955,95169.0,95168.0,0.17988454]
[1733128802093,0.55378955,95169.0,95168.0,0.17988454]
[1733128802567,0.54578955,95169.0,95168.0,0.17988454]
[1733128803235,0.54278955,95169.0,95168.0,0.26048454]
[1733128803488,0.54278955,95169.0,95168.0,0.26134744]
[1733128803489,0.54578955,95169.0,95168.0,0.26134744]
[1733128803910,0.79078955,95169.0,95168.0,0.26134744]
[1733128804342,0.78678955,95169.0,95168.0,0.26134744]
[1733128804617,0.79578955,95169.0,95168.0,0.26134744]
[1733128805307,0.78678955,95169.0,95168.0,0.26134744]
[1733128805752,0.79578955,95169.0,95168.0,0.26134744]
[1733128805998,0.79538822,95169.0,95168.0,0.26134744]
[1733128806201,0.76636454,95169.0,95168.0,0.30834744]
[1733128806723,0.76936454,95169.0,95168.0,0.30834744]
[1733128806950,0.7854066,95169.0,95168.0,0.30834744]
[1733128807181,0.7824066,95169.0,95168.0,0.30834744]
[1733128807398,0.54277504,95169.0,95168.0,0.30834744]
[1733128807631,0.39277504,95169.0,95168.0,0.30834744]
[1733128807863,0.39277504,95169.0,95168.0,0.18074744]
[1733128808076,0.39320431,95169.0,95168.0,0.18074744]
[1733128808310,0.39320431,95169.0,95168.0,0.22784744]
[1733128808557,0.36116235,95169.0,95168.0,0.22784744]
[1733128808784,0.3778375,95169.0,95168.0,0.22784744]
[1733128809022,0.5278375,95169.0,95168.0,0.22784744]
[1733128809468,0.52740823,95169.0,95168.0,0.31034744]
[1733128809720,0.52440823,95169.0,95168.0,0.31034744]
[1733128809935,0.97485546,95169.0,95168.0,0.31034744]
[1733128810179,0.97085546,95169.0,95168.0,0.31034744]
[1733128810412,0.97885546,95169.0,95168.0,0.30034744]
[1733128810636,0.96785546,95169.0,95168.0,0.30034744]
[1733128810884,0.97184687,95169.0,95168.0,0.29614744]
[1733128811334,0.97184687,95169.0,95168.0,0.29194744]
[1733128811335,0.52884687,95169.0,95168.0,0.29194744]
[1733128811558,0.52884687,95169.0,95168.0,0.24484744]
[1733128812027,0.52184687,95169.0,95168.0,0.16234744]
[1733128812276,0.97184687,95169.0,95168.0,0.16234744]
[1733128812504,0.96884687,95169.0,95168.0,0.16195864]
[1733128812743,0.98347985,95169.0,95168.0,0.16195864]
[1733128813197,0.52847985,95169.0,95168.0,0.16195864]
[1733128813685,0.54247985,95169.0,95168.0,0.16195864]
[1733128813899,0.53347985,95169.0,95168.0,0.15113045]
[1733128814117,0.92163877,95169.0,95168.0,0.15113045]